bitfinex/quotes_SOLUSD_20250818
["timestamp","ask_amount","ask_price","bid_price","bid_amount"]
[1755525048695,21.19484425,181.6,181.59,6.3280159]
[1755525049056,21.19484425,181.6,181.59,0.8213066]
[1755525049260,21.19484425,181.6,181.59,6.32817926]
[1755525049562,26.0,181.62,181.59,7.04817926]
[1755525049761,0.7,181.7,181.61,5.50630471]
[1755525050067,21.19484425,181.64,181.62,0.72]
[1755525050267,47.19484425,181.63,181.59,0.8213066]
[1755525050475,21.19484425,181.6,181.59,0.8213066]
[1755525050694,47.19484425,181.6,181.59,0.8213066]
[1755525050924,47.89484425,181.6,181.59,0.8213066]
[1755525051471,47.19484425,181.6,181.59,0.8213066]
[1755525052102,47.89484425,181.6,181.59,0.8213066]
[1755525053290,21.89484425,181.6,181.59,0.8213066]
[1755525053495,32.20660792,181.6,181.59,0.8213066]
[1755525053683,47.89484425,181.6,181.59,0.8213066]
[1755525054503,47.89484425,181.6,181.57,0.2]
[1755525054775,26.0,181.55,181.47,2.92903]
[1755525054976,21.19484425,181.56,181.47,20.00693447]
[1755525055210,26.0,181.53,181.47,20.00693447]
[1755525055376,26.0,181.53,181.48,0.72]
[1755525055377,21.19484425,181.49,181.48,0.72]
[1755525055583,26.0,181.57,181.49,0.72]
[1755525055793,26.0,181.57,181.5,19.28374655]
[1755525055986,21.19484425,181.53,181.51,0.72]
[1755525056192,21.19484425,181.52,181.5,5.50964187]
[1755525056392,21.19484425,181.51,181.49,5.50988129]
[1755525056577,26.0,181.53,181.5,0.72]
[1755525056774,21.19484425,181.51,181.5,0.72]
[1755525057685,21.19484425,181.51,181.5,6.22964187]
[1755525057900,21.19484425,181.51,181.5,5.50964187]
[1755525058095,26.0,181.56,181.5,5.50964187]
[1755525058406,21.19484425,181.51,181.5,6.22964187]
[1755525058626,21.19484425,181.51,181.5,5.50964187]
[1755525059183,26.0,181.48,181.41,0.83136342]
[1755525059399,21.19484425,181.56,181.41,0.83136342]
[1755525059400,26.0,181.46,181.41,7.06350913]
[1755525059604,26.0,181.46,181.41,6.34350913]
[1755525059815,26.0,181.49,181.41,20.12444733]
[1755525060001,21.19484425,181.42,181.41,6.34350913]
[1755525060310,21.19484425,181.42,181.41,0.83136342]
[1755525060992,21.19484425,181.42,181.41,7.0237387]
[1755525061194,21.19484425,181.42,181.41,0.83136342]
[1755525061596,26.7,181.48,181.41,7.0237387]
[1755525061791,21.19484425,181.44,181.42,0.68]
[1755525061990,21.19484425,181.43,181.41,6.3437387]
[1755525062188,21.19484425,181.42,181.41,6.3437387]
[1755525062392,21.19484425,181.42,181.41,6.3737387]
[1755525062586,26.0,181.49,181.41,7.0537387]
[1755525062815,0.7,181.5,181.41,7.0537387]
[1755525062816,21.19484425,181.42,181.41,7.0537387]
[1755525062992,26.0,181.45,181.41,7.0537387]
[1755525063186,26.0,181.49,181.42,0.68]
[1755525063391,21.19484425,181.43,181.42,0.68]
[1755525063595,26.0,181.47,181.42,0.68]
[1755525063818,21.19484425,181.43,181.42,6.19207143]
[1755525063996,21.19484425,181.43,181.42,5.51207143]
[1755525064196,26.0,181.47,181.42,5.51207143]
[1755525064398,26.0,181.49,181.43,0.68]
[1755525064643,15.10621557,181.55,181.43,0.68]
[1755525064644,0.12,181.55,181.45,21.19484425]
[1755525064932,26.0,181.55,181.46,0.68]
[1755525065229,21.19484425,181.56,181.5,21.19484425]
[1755525065441,13.76079535,181.68,181.52,21.19484425]
[1755525065601,21.19484425,181.61,181.55,21.19484425]
[1755525065803,21.19484425,181.63,181.58,19.27525057]
[1755525066001,21.19484425,181.6,181.59,0.68]
[1755525066321,21.19484425,181.6,181.58,5.50721445]
[1755525066515,21.19484425,181.59,181.58,5.50721445]
[1755525066940,21.19484425,181.59,181.53,5.50846545]
[1755525067146,21.19484425,181.54,181.49,5.50994545]
[1755525067354,21.19484425,181.5,181.49,6.18994545]
[1755525067648,21.19484425,181.5,181.49,5.50994545]
[1755525067936,21.19484425,181.5,181.46,5.51085638]
[1755525068124,21.19484425,181.47,181.46,6.19085638]
[1755525068328,26.0,181.53,181.46,6.19085638]
[1755525068698,21.19484425,181.48,181.46,6.19085638]
[1755525068898,26.0,181.53,181.46,6.19085638]
[1755525069168,21.19484425,181.5,181.46,19.96799734]
[1755525069382,21.19484425,181.51,181.47,0.68]
[1755525069550,5.50667434,181.6,181.49,21.19484425]
[1755525069551,0.7,181.6,181.49,21.19484425]
[1755525069695,26.0,181.56,181.5,0.68]
[1755525069900,0.7,181.64,181.53,19.28055967]
[1755525070102,21.19484425,181.63,181.57,21.19484425]
[1755525070344,21.19484425,181.61,181.58,0.68]
[1755525070505,21.19484425,181.6,181.55,0.68]
[1755525070717,21.19484425,181.58,181.56,0.68]
[1755525070941,21.19484425,181.61,181.57,0.68]
[1755525071141,21.19484425,181.58,181.54,17.23949]
[1755525071467,21.19484425,181.57,181.54,0.68]
[1755525071974,26.0,181.61,181.53,19.28055967]
[1755525071975,21.19484425,181.56,181.53,13.77182834]
[1755525072261,21.19484425,181.56,181.52,5.50903481]
[1755525072262,21.19484425,181.54,181.52,5.50903481]
[1755525072579,21.19484425,181.53,181.5,5.50964187]
[1755525072869,21.19484425,181.51,181.49,5.50990958]
[1755525073062,21.19484425,181.5,181.45,0.68]
[1755525073263,21.19484425,181.48,181.45,0.68]
[1755525073441,21.19484425,181.49,181.46,0.68]
[1755525073641,21.19484425,181.48,181.46,0.68]
[1755525074040,21.19484425,181.48,181.47,5.5105527]
[1755525074261,26.0,181.52,181.47,5.5105527]
[1755525074462,21.19484425,181.49,181.47,5.5105527]
[1755525074652,21.19484425,181.48,181.47,5.5105527]
[1755525074982,21.19484425,181.48,181.42,14.45986881]
[1755525075283,21.19484425,181.45,181.43,5.51176762]
[1755525075564,21.19484425,181.44,181.43,5.51176762]
[1755525075773,26.0,181.49,181.43,6.19176762]
[1755525075774,21.19484425,181.45,181.43,6.19176762]
[1755525075936,26.0,181.49,181.43,6.19176762]
[1755525076137,21.19484425,181.47,181.43,19.97118667]
[1755525076338,0.7,181.54,181.44,0.68]
[1755525076339,21.19484425,181.48,181.44,0.68]
[1755525076553,21.19484425,181.5,181.45,21.87484425]
[1755525076769,26.0,181.53,181.46,0.68]
[1755525076981,21.19484425,181.48,181.46,0.68]
[1755525077148,21.19484425,181.48,181.43,19.97118667]
[1755525077479,21.19484425,181.49,181.44,21.87484425]
[1755525077670,21.19484425,181.49,181.45,0.68]
[1755525077988,21.19484425,181.46,181.43,19.29118667]
[1755525078160,21.19484425,181.44,181.43,5.51176762]
[1755525078671,26.0,181.5,181.43,5.51176762]
[1755525078839,21.19484425,181.48,181.43,6.19176762]
[1755525079160,26.0,181.52,181.43,19.97118667]
[1755525079373,21.19484425,181.44,181.43,5.51176762]
[1755525079980,21.19484425,181.45,181.42,5.51207143]
[1755525080180,21.19484425,181.48,181.43,0.68]
[1755525080384,21.19484425,181.44,181.42,5.51207143]
[1755525080669,0.7,181.47,181.42,5.51207143]
[1755525080880,21.19484425,181.43,181.42,5.51207143]
[1755525081241,0.7,181.46,181.43,0.03]
[1755525081442,21.19484425,181.44,181.43,0.03]
[1755525081861,0.7,181.49,181.43,0.03]
[1755525082097,21.19484425,181.44,181.43,0.03]
[1755525082984,0.7,181.52,181.43,0.71]
[1755525083142,21.19484425,181.44,181.43,0.03]
[1755525083680,21.89484425,181.44,181.43,0.03]
[1755525084148,21.19484425,181.44,181.43,0.03]
[1755525084345,21.89484425,181.44,181.43,0.03]
[1755525085178,26.7,181.47,181.43,0.03]
[1755525085487,26.0,181.47,181.43,0.03]
[1755525085642,0.7,181.5,181.43,0.03]
[1755525085864,21.19484425,181.44,181.43,0.03]
[1755525086198,26.0,181.48,181.43,0.03]
[1755525086199,21.19484425,181.45,181.43,0.03]
[1755525086714,21.19484425,181.44,181.43,0.03]
[1755525086877,0.7,181.47,181.43,0.03]
[1755525087077,0.7,181.55,181.46,21.19484425]
[1755525087374,21.19484425,181.54,181.49,21.19484425]
[1755525087594,0.06,181.57,181.43,0.03]
[1755525087595,5.56753855,181.57,181.43,0.03]
[1755525087780,5.56753855,181.57,181.44,0.68]
[1755525087781,21.19484425,181.48,181.44,0.68]
[1755525087985,26.7,181.53,181.44,21.19484425]
[1755525088190,26.7,181.53,181.43,0.03]
[1755525088191,26.0,181.49,181.43,0.03]
[1755525088383,21.19484425,181.44,181.43,0.03]
[1755525088777,26.0,181.42,181.41,0.74136342]
[1755525089000,50.7901202,181.42,181.41,0.74136342]
[1755525089187,51.38832548,181.42,181.41,0.74136342]
[1755525089389,4.19348123,181.42,181.41,0.74136342]
[1755525089697,26.0,181.44,181.41,0.74136342]
[1755525089886,21.19484425,181.42,181.41,0.74136342]
[1755525090088,21.19484425,181.42,181.41,4.82790558]
[1755525090283,21.19484425,181.42,181.41,0.74136342]
[1755525090484,0.6,181.51,181.41,32.21839279]
[1755525090669,21.19484425,181.51,181.45,21.19484425]
[1755525090876,21.19484425,181.52,181.46,25.94465409]
[1755525091185,21.19484425,181.51,181.46,0.66]
[1755525091392,21.19484425,181.48,181.43,0.66]
[1755525091589,21.19484425,181.47,181.41,41.22952115]
[1755525091788,21.19484425,181.48,181.43,21.19484425]
[1755525091991,21.19484425,181.48,181.44,0.66]
[1755525092183,26.0,181.52,181.45,5.51116009]
[1755525092499,26.0,181.53,181.45,40.48390458]
[1755525092683,21.19484425,181.55,181.5,21.19484425]
[1755525092887,21.19484425,181.55,181.46,0.66]
[1755525092888,0.06,181.57,181.51,21.85484425]
[1755525093083,0.06,181.57,181.54,21.19484425]
[1755525093281,0.06,181.57,181.55,21.19484425]
[1755525093603,21.19484425,181.56,181.46,15.10621557]
[1755525093772,26.0,181.54,181.46,15.10621557]
[1755525093971,21.19484425,181.51,181.45,40.48390458]
[1755525094277,0.6,181.56,181.48,5.51024906]
[1755525094477,26.0,181.56,181.49,21.85484425]
[1755525094797,3.6714081,181.57,181.53,21.19484425]
[1755525094798,0.06,181.57,181.53,21.19484425]
[1755525094991,0.06,181.57,181.53,0.66]
[1755525095205,21.19484425,181.56,181.53,0.66]
[1755525095402,0.06,181.57,181.51,21.19484425]
[1755525095710,0.06,181.57,181.51,21.85484425]
[1755525095919,0.06,181.57,181.53,21.19484425]
[1755525096287,0.06,181.57,181.55,21.19484425]
[1755525096698,0.06,181.57,181.56,0.66]
[1755525097214,1e-08,181.57,181.56,21.85484425]
[1755525097583,1e-08,181.57,181.56,0.66]
[1755525098310,1e-08,181.57,181.56,6.1678211]
[1755525099014,1e-08,181.57,181.56,27.36266535]
[1755525099618,1e-08,181.57,181.56,6.1678211]
[1755525100081,1e-08,181.57,181.56,27.36266535]
[1755525100281,1e-08,181.57,181.56,6.1678211]
[1755525100971,1e-08,181.59,181.56,42.46888092]
[1755525101128,1e-08,181.61,181.59,15.10621557]
[1755525101326,21.25484425,181.67,181.59,15.10621557]
[1755525101529,21.19484425,181.65,181.6,0.66]
[1755525101742,0.06,181.67,181.62,21.19484425]
[1755525101950,0.06,181.67,181.61,0.66]
[1755525102157,0.06,181.67,181.64,21.19484425]
[1755525102369,0.06,181.67,181.65,6.16509221]
[1755525102573,0.06,181.67,181.66,21.19484425]
[1755525103062,1e-08,181.67,181.66,21.85484425]
[1755525103260,1e-08,181.67,181.66,0.66]
[1755525103437,1e-08,181.67,181.66,25.2]
[1755525104467,21.19484426,181.67,181.61,5.50630471]
[1755525104690,26.00000001,181.67,181.61,5.50630471]
[1755525104894,21.19484425,181.63,181.61,5.50630471]
[1755525105259,26.00000001,181.67,181.62,21.85484425]
[1755525105587,1e-08,181.67,181.63,21.85484425]
[1755525105753,1e-08,181.67,181.63,21.19484425]
[1755525105949,1e-08,181.67,181.64,0.66]
[1755525106348,1e-08,181.67,181.65,5.50509221]
[1755525107092,21.19484426,181.67,181.65,5.50509221]
[1755525107262,21.19484425,181.66,181.61,5.50630471]
[1755525107459,1e-08,181.67,181.61,5.50630471]
[1755525107665,21.19484425,181.62,181.61,5.50630471]
[1755525107985,21.19484425,181.63,181.61,5.50630471]
[1755525108297,21.19484425,181.62,181.61,5.50630471]
[1755525108602,21.19484425,181.62,181.58,5.50721445]
[1755525108804,21.19484425,181.61,181.58,5.50721445]
[1755525109005,21.19484425,181.6,181.58,5.50721445]
[1755525110069,21.19484425,181.61,181.56,5.5078211]
[1755525110266,21.19484425,181.59,181.56,5.5078211]
[1755525110793,21.19484425,181.57,181.55,5.50808465]
[1755525111101,21.19484425,181.56,181.52,5.50903481]
[1755525111399,21.19484425,181.53,181.52,5.50903481]
[1755525111762,21.19484425,181.54,181.52,5.50903481]
[1755525111966,0.6,181.57,181.52,5.50903481]
[1755525112177,21.19484425,181.55,181.5,0.66]
[1755525112382,26.0,181.61,181.53,21.19484425]
[1755525112568,21.19484425,181.59,181.54,21.85484425]
[1755525112887,21.19484425,181.6,181.55,0.66]
[1755525113188,21.19484425,181.58,181.52,0.66]
[1755525113402,21.19484425,181.57,181.52,0.66]
[1755525113568,21.19484425,181.58,181.52,21.85484425]
[1755525113766,0.6,181.62,181.56,0.03]
[1755525113977,26.0,181.61,181.56,0.03]
[1755525114178,26.0,181.61,181.57,0.66]
[1755525114378,21.19484425,181.63,181.58,21.85484425]
[1755525114579,21.19484425,181.63,181.59,0.66]
[1755525114975,21.19484425,181.62,181.59,0.66]
[1755525115174,26.6,181.66,181.59,25.86]
[1755525115483,21.19484425,181.63,181.6,5.50660792]
[1755525117086,21.19484425,181.62,181.6,5.50660792]
[1755525117394,0.6,181.66,181.6,30.70660792]
[1755525117395,21.19484425,181.63,181.6,30.70660792]
[1755525117595,21.19484425,181.62,181.6,30.70660792]
[1755525117797,21.19484425,181.61,181.57,5.50751776]
[1755525118113,21.19484425,181.58,181.56,5.5377882]
[1755525118602,21.19484425,181.58,181.56,6.1977882]
[1755525118804,26.6,181.62,181.56,6.1977882]
[1755525119007,21.19484425,181.57,181.56,0.03]
[1755525119702,27.30236201,181.57,181.56,0.03]
[1755525120089,21.79484425,181.57,181.56,0.03]
[1755525120395,0.6,181.62,181.56,0.03]
[1755525120585,26.0,181.59,181.56,0.03]
[1755525120786,21.19484425,181.57,181.56,0.03]
[1755525121115,0.6,181.65,181.57,0.71]
[1755525121277,47.19484425,181.61,181.57,0.71]
[1755525121478,21.19484425,181.6,181.58,5.50721445]
[1755525121693,0.6,181.65,181.58,5.50721445]
[1755525121694,47.19484425,181.59,181.58,5.50721445]
[1755525121889,26.0,181.59,181.58,5.50721445]
[1755525122100,1e-08,181.67,181.58,41.18009482]
[1755525122302,21.19484425,181.64,181.59,21.19484425]
[1755525122508,47.19484425,181.64,181.6,0.71]
[1755525123006,26.0,181.62,181.61,0.71]
[1755525123208,26.0,181.62,181.6,0.71]
[1755525123606,21.19484425,181.64,181.61,5.50630471]
[1755525123986,21.19484425,181.63,181.61,5.50630471]
[1755525125081,21.19484425,181.62,181.57,5.50751776]
[1755525125283,26.0,181.64,181.57,19.27631216]
[1755525125587,0.6,181.63,181.56,0.03]
[1755525125785,21.19484425,181.59,181.56,0.03]
[1755525126114,21.19484425,181.61,181.57,0.71]
[1755525126331,13.52603709,181.6,181.57,0.71]
[1755525126998,26.0,181.64,181.56,25.23]
[1755525126999,13.52603709,181.62,181.58,0.71]
[1755525127188,13.52603709,181.63,181.59,0.71]
[1755525127391,1e-08,181.67,181.58,13.52603709]
[1755525127392,26.0,181.64,181.6,0.71]
[1755525127591,26.0,181.64,181.61,0.71]
[1755525127592,26.0,181.62,181.61,0.71]
[1755525127786,1e-08,181.67,181.59,19.2741891]
[1755525127996,26.0,181.66,181.59,45.1841891]
[1755525128212,13.52603709,181.63,181.59,45.1841891]
[1755525128416,13.52603709,181.62,181.59,19.2741891]
[1755525128792,13.52603709,181.62,181.59,19.9841891]
[1755525129312,13.52603709,181.61,181.59,5.50691117]
[1755525129502,13.52603709,181.6,181.59,5.50691117]
[1755525130218,13.52603709,181.6,181.59,6.21691117]
[1755525130518,13.52603709,181.62,181.59,6.21691117]
[1755525131017,26.0,181.66,181.6,0.71]
[1755525131216,13.52603709,181.64,181.6,0.71]
[1755525131693,13.52603709,181.64,181.61,5.50630471]
[1755525132012,13.52603709,181.64,181.61,19.9820665]
[1755525132702,13.52603709,181.65,181.61,19.9820665]
[1755525132895,13.52603709,181.65,181.62,0.71]
[1755525133230,1e-08,181.67,181.61,19.2720665]
[1755525133231,1e-08,181.67,181.64,13.52603709]
[1755525133395,1e-08,181.67,181.63,0.71]
[1755525133594,1e-08,181.67,181.64,0.71]
[1755525133792,1e-08,181.67,181.61,19.2720665]
[1755525134088,1e-08,181.67,181.62,15.81621557]
[1755525134593,1e-08,181.67,181.63,0.71]
[1755525134790,1e-08,181.67,181.64,13.52603709]
[1755525134996,1e-08,181.67,181.63,0.71]
[1755525135214,1e-08,181.67,181.63,14.23603709]
[1755525135515,1e-08,181.67,181.65,13.52603709]
[1755525135721,1e-08,181.67,181.64,14.23603709]
[1755525135924,1e-08,181.67,181.65,5.50509221]
[1755525136101,1e-08,181.67,181.65,6.21509221]
[1755525136897,1e-08,181.67,181.66,6.21478916]
[1755525137420,1e-08,181.67,181.66,19.74082625]
[1755525137717,1e-08,181.67,181.66,34.84704182]
[1755525138791,1e-08,181.67,181.66,60.04704182]
[1755525139001,1e-08,181.69,181.68,34.13643583]
[1755525139403,1e-08,181.69,181.68,34.84643583]
[1755525139712,1e-08,181.69,181.68,6.21418317]
[1755525140098,1e-08,181.69,181.68,19.74022026]
[1755525140691,1e-08,181.69,181.68,6.21418317]
[1755525141114,1e-08,181.69,181.68,5.50418317]
[1755525141618,13.5260371,181.69,181.68,5.50418317]
[1755525141815,13.5260371,181.69,181.66,5.50451185]
[1755525141992,13.52603709,181.68,181.66,5.50451185]
[1755525142197,1e-08,181.69,181.66,5.50451185]
[1755525142406,1e-08,181.69,181.67,0.71]
[1755525142922,13.5260371,181.69,181.67,0.71]
[1755525143109,13.5260371,181.69,181.68,5.50418317]
[1755525144299,14.1260371,181.69,181.65,5.50509221]
[1755525144524,13.52603709,181.66,181.65,5.50509221]
[1755525145530,13.52603709,181.67,181.65,5.50509221]
[1755525145745,1e-08,181.69,181.66,0.71]
[1755525146028,1e-08,181.69,181.68,28.63225266]
[1755525146222,1e-08,181.69,181.68,34.13643583]
[1755525146541,1e-08,181.69,181.68,34.84643583]
[1755525146852,3.62502707,181.8,181.69,15.10621557]
[1755525147135,13.52603709,181.78,181.73,13.52603709]
[1755525147300,13.52603709,181.78,181.74,0.71]
[1755525147505,0.6,181.84,181.75,14.23603709]
[1755525147722,13.52603709,181.81,181.76,0.71]
[1755525147926,13.52603709,181.8,181.76,0.71]
[1755525148095,14.38181759,181.77,181.72,0.71]
[1755525148300,13.52603709,181.76,181.73,5.50266879]
[1755525148501,13.52603709,181.75,181.73,5.50266879]
[1755525148829,13.52603709,181.74,181.73,5.50266879]
[1755525149409,1.4557805,181.77,181.73,5.50266879]
[1755525149627,13.52603709,181.75,181.73,5.50266879]
[1755525150328,13.52603709,181.74,181.7,19.26252063]
[1755525150636,13.52603709,181.74,181.71,0.71]
[1755525150814,27.4557805,181.77,181.7,19.26252063]
[1755525151028,13.52603709,181.73,181.7,19.26252063]
[1755525151208,13.52603709,181.73,181.7,19.96252063]
[1755525151403,0.8557805,181.77,181.71,0.7]
[1755525151627,0.8557805,181.77,181.73,15.10621557]
[1755525151810,0.8557805,181.77,181.74,14.22603709]
[1755525152338,0.8557805,181.77,181.76,5.50176056]
[1755525152722,0.8557805,181.77,181.76,19.02779765]
[1755525152919,0.8557805,181.77,181.76,19.72779765]
[1755525153124,1e-08,181.77,181.76,34.83401322]
[1755525153454,0.06,181.79,181.76,34.83401322]
[1755525153455,1e-08,181.79,181.77,15.10621557]
[1755525153638,1e-08,181.79,181.77,15.80621557]
[1755525153946,1e-08,181.79,181.78,0.7]
[1755525154113,1e-08,181.79,181.77,28.63225266]
[1755525154436,1e-08,181.79,181.78,5.50115524]
[1755525155118,1e-08,181.79,181.78,34.8334079]
[1755525155512,1e-08,181.79,181.78,5.50115524]
[1755525155727,14.1260371,181.79,181.78,5.50115524]
[1755525155925,14.1260371,181.79,181.76,5.50176056]
[1755525156242,13.52603709,181.77,181.76,5.50176056]
[1755525156541,13.52603709,181.77,181.72,19.9599571]
[1755525156745,1e-08,181.79,181.73,15.80621557]
[1755525156945,13.52603709,181.78,181.73,29.33225266]
[1755525157129,13.5260371,181.79,181.74,0.7]
[1755525157343,13.5260371,181.79,181.75,0.7]
[1755525157651,13.52603709,181.78,181.73,15.10621557]
[1755525157831,13.52603709,181.78,181.75,0.7]
[1755525158034,13.52603709,181.76,181.72,19.2599571]
[1755525158239,1e-08,181.79,181.72,19.2599571]
[1755525158438,13.52603709,181.75,181.72,19.9599571]
[1755525158854,0.60000001,181.79,181.72,19.9599571]
[1755525159154,13.52603709,181.77,181.72,33.48599419]
[1755525159360,13.52603709,181.77,181.73,0.7]
[1755525159534,13.52603709,181.77,181.74,0.7]
[1755525160135,13.52603709,181.76,181.72,19.2599571]
[1755525160336,13.52603709,181.77,181.74,5.50236601]
[1755525160533,1e-08,181.79,181.74,19.25828105]
[1755525160734,1e-08,181.79,181.75,15.80621557]
[1755525161057,13.52603709,181.77,181.74,19.25828105]
[1755525161239,1e-08,181.79,181.74,19.95828105]
[1755525161442,1e-08,181.79,181.75,15.80621557]
[1755525161967,13.5260371,181.79,181.75,15.80621557]
[1755525162139,13.52603709,181.77,181.74,19.25828105]
[1755525162331,13.52603709,181.75,181.73,5.50266879]
[1755525162653,26.0,181.78,181.73,5.50266879]
[1755525162855,13.52603709,181.77,181.73,19.95934077]
[1755525163029,13.52603709,181.78,181.74,0.7]
[1755525163231,1e-08,181.79,181.75,0.7]
[1755525163664,0.60000001,181.79,181.74,15.10621557]
[1755525163873,13.5260371,181.79,181.75,0.7]
[1755525164038,1e-08,181.79,181.75,0.7]
[1755525164376,1e-08,181.79,181.76,5.50176056]
[1755525164652,1e-08,181.79,181.76,6.20176056]
[1755525165045,1e-08,181.79,181.77,0.7]
[1755525165559,1e-08,181.79,181.78,29.33225266]
[1755525166335,1e-08,181.79,181.78,5.50115524]
[1755525167247,13.5260371,181.79,181.78,5.50115524]
[1755525167634,1e-08,181.79,181.78,5.50115524]
[1755525168474,13.5260371,181.79,181.75,19.25664088]
[1755525168835,13.52603709,181.77,181.75,5.50206327]
[1755525169034,13.52603709,181.76,181.75,5.50206327]
[1755525170467,26.60000001,181.79,181.73,19.25934077]
[1755525170468,13.52603709,181.77,181.73,19.25934077]
[1755525170762,13.52603709,181.77,181.73,19.95934077]
[1755525171361,13.52603709,181.76,181.73,19.95934077]
[1755525171666,13.52603709,181.75,181.73,19.25934077]
[1755525171846,13.52603709,181.74,181.7,14.45855002]
[1755525172034,0.6,181.77,181.71,5.50327444]
[1755525172235,26.6,181.77,181.71,5.50327444]
[1755525172434,26.6,181.77,181.7,13.75855002]
[1755525172636,1e-08,181.79,181.71,15.10621557]
[1755525172863,1e-08,181.79,181.7,14.45855002]
[1755525173070,0.6,181.78,181.69,5.53388023]
[1755525173237,13.52603709,181.72,181.69,5.53388023]
[1755525173441,13.52603709,181.73,181.69,6.23388023]
[1755525173749,13.52603709,181.72,181.69,6.23388023]
[1755525174151,0.6,181.77,181.69,19.99358081]
[1755525174348,13.52603709,181.73,181.7,0.7]
[1755525175053,0.60000001,181.79,181.71,0.7]
[1755525175566,13.52603709,181.74,181.71,0.7]
[1755525175955,13.52603709,181.74,181.72,0.7]
[1755525176136,0.60000001,181.79,181.73,5.50266879]
[1755525176137,13.52603709,181.76,181.73,5.50266879]
[1755525176455,1e-08,181.79,181.74,0.7]
[1755525176644,1e-08,181.79,181.75,0.7]
[1755525176842,13.5260371,181.79,181.75,0.7]
[1755525177059,13.52603709,181.78,181.75,0.7]
[1755525177264,1e-08,181.79,181.75,0.7]
[1755525177756,13.5260371,181.79,181.75,0.7]
[1755525177955,13.52603709,181.77,181.73,19.25934077]
[1755525178357,13.52603709,181.75,181.72,5.5029716]
[1755525178653,1e-08,181.79,181.73,0.7]
[1755525179045,13.5260371,181.79,181.74,13.52603709]
[1755525179242,13.52603709,181.78,181.75,0.7]
[1755525179441,13.52603709,181.77,181.73,15.10621557]
[1755525179640,13.52603709,181.76,181.72,19.26040061]
[1755525179843,13.52603709,181.76,181.72,19.96040061]
[1755525180469,13.52603709,181.75,181.72,19.26040061]
[1755525180659,13.52603709,181.74,181.72,45.16040061]
[1755525180848,4.24028816,181.79,181.73,0.66]
[1755525181170,13.52603709,181.77,181.73,25.86]
[1755525181369,1e-08,181.79,181.73,25.86]
[1755525181370,13.52603709,181.76,181.73,25.86]
[1755525181573,13.52603709,181.76,181.72,19.26040061]
[1755525181574,13.52603709,181.74,181.72,5.5029716]
[1755525181759,13.52603709,181.73,181.72,5.5029716]
[1755525182072,13.52603709,181.73,181.69,38.98922226]
[1755525182073,14.12603709,181.73,181.69,0.03]
[1755525182252,13.52603709,181.7,181.69,0.03]
[1755525182665,26.0,181.75,181.69,0.69]
[1755525182859,39.52603709,181.75,181.7,13.52603709]
[1755525183058,13.52603709,181.74,181.69,38.75603709]
[1755525183256,13.52603709,181.75,181.7,0.66]
[1755525183462,0.6,181.78,181.71,0.66]
[1755525183766,13.52603709,181.74,181.69,39.41603709]
[1755525184066,0.6,181.73,181.69,25.23]
[1755525184275,0.6,181.73,181.7,6.16357732]
[1755525184276,13.52603709,181.73,181.7,6.16357732]
[1755525184581,13.52603709,181.75,181.71,0.66]
[1755525184777,26.0,181.77,181.7,19.26252063]
[1755525184778,13.52603709,181.74,181.7,19.26252063]
[1755525185081,13.52603709,181.75,181.71,0.66]
[1755525185269,26.0,181.77,181.71,0.66]
[1755525185469,13.52603709,181.78,181.73,13.52603709]
[1755525185654,13.52603709,181.77,181.73,0.66]
[1755525185858,13.52603709,181.78,181.73,0.66]
[1755525186070,13.52603709,181.78,181.74,0.66]
[1755525186276,13.52603709,181.75,181.7,19.26252063]
[1755525186453,0.6,181.77,181.71,15.10621557]
[1755525186651,13.52603709,181.76,181.71,28.63225266]
[1755525186851,13.52603709,181.77,181.72,14.18603709]
[1755525187077,13.52603709,181.77,181.73,0.66]
[1755525187384,0.6,181.77,181.71,28.63225266]
[1755525187547,13.52603709,181.76,181.71,28.63225266]
[1755525187754,13.52603709,181.76,181.71,29.29225266]
[1755525187957,0.6,181.77,181.71,29.29225266]
[1755525188153,0.60000001,181.79,181.72,0.66]
[1755525188351,1e-08,181.79,181.75,28.63225266]
[1755525188580,1e-08,181.79,181.76,14.18603709]
[1755525188779,1e-08,181.79,181.76,0.66]